[Event "Serbian League 2024"]
[Site "Bajina Basta"]
[Date "2024.10.02"]
[Round "6.30"]
[White "Zivanovic, Bojan"]
[Black "Ristic, Luka"]
[Result "1/2-1/2"]
[ECO "A46"]
[WhiteElo "2161"]
[BlackElo "2274"]
[Annotator "RC"]
[PlyCount "65"]
[EventDate "2024.09.26"]
[EventType "team-tourn"]
[EventCountry "SRB"]
[SourceTitle "playchess.com"]
[Source "ChessBase"]
[SourceQuality "1"]
[TimeControl "40/5400+30:1800+30"]

1. Nf3 {[%emt 0:00:03]} d6 {[%emt 0:01:15]} 2. d4 {[%emt 0:00:13]} Nf6 {[%emt 0:00:18]} 3. g3 {[%emt 0:00:17]} Nbd7 {[%emt 0:00:26]} 4. Bg2 {[%emt 0:00:52]} e5 {[%emt 0:01:00]} 5. dxe5 {[%emt 0:02:17]} dxe5 {[%emt 0:00:52]} 6. O-O {[%emt 0:01:07]} Bd6 {[%emt 0:08:48]} 7. c4 {[%emt 0:01:38]} O-O {[%emt 0:03:25]} 8. Nc3 {[%emt 0:02:48]} h6 {[%emt 0:08:28]} 9. Qc2 {[%emt 0:05:17]} a5 {[%emt 0:03:42]} 10. b3 {[%emt 0:02:54]} Qe7 {[%emt 0:02:27]} 11. Nh4 {[%emt 0:22:59]} Nc5 {[%emt 0:05:33]} 12. Nf5 {[%emt 0:09:02]} Bxf5 {[%emt 0:00:33]} 13. Qxf5 {[%emt 0:00:01]} c6 {[%emt 0:03:14]} 14. Be3 {[%emt 0:03:44]} Qe6 {[%emt 0:06:13]} 15. Bh3 {[%emt 0:05:57]} Qxf5 {[%emt 0:02:48]} 16. Bxf5 {[%emt 0:00:16]} Na6 {[%emt 0:02:15]} 17. Rad1 {[%emt 0:06:00]} Bc5 {[%emt 0:03:43]} 18. Bc1 {[%emt 0:03:32]} Rfe8 {[%emt 0:08:55]} 19. Ne4 {[%emt 0:03:57]} Nxe4 {[%emt 0:00:23]} 20. Bxe4 {[%emt 0:00:01]} Bd4 {[%emt 0:00:42]} 21. e3 {[%emt 0:01:57]} Bc3 {[%emt 0:00:34]} 22. Ba3 {[%emt 0:01:20]} g6 {[%emt 0:14:10]} 23. g4 {[%emt 0:01:14]} Rad8 {[%emt 0:00:35]} 24. Kg2 {[%emt 0:01:11]} Bd2 {[%emt 0:06:49]} 25. h4 {[%emt 0:02:13]} Nb4 {[%emt 0:01:48]} 26. Bxb4 {[%emt 0:02:09]} axb4 {[%emt 0:00:06]} 27. Kf3 {[%emt 0:00:50]} Rd6 {[%emt 0:01:43]} 28. Ke2 {[%emt 0:01:49]} Red8 {[%emt 0:00:05]} 29. g5 {[%emt 0:04:34]} Kg7 {[%emt 0:00:41]} 30. Rg1 {[%emt 0:00:41]} R6d7 {[%emt 0:05:07]} 31. Rh1 {[%emt 0:00:42]} Bc3 {[%emt 0:01:16]} 32. Rxd7 {[%emt 0:01:17]} Rxd7 {[%emt 0:00:10]} 33. Rd1 {[%emt 0:00:03]} 1/2-1/2

[Event "Serbian League 2024"]
[Site "Bajina Basta"]
[Date "2024.10.02"]
[Round "6.31"]
[White "Indjic, Aleksandar"]
[Black "Hovhannisyan, Robert"]
[Result "1-0"]
[ECO "A09"]
[WhiteElo "2611"]
[BlackElo "2619"]
[Annotator "TA"]
[PlyCount "107"]
[EventDate "2024.09.26"]
[EventType "team-tourn"]
[EventCountry "SRB"]
[SourceTitle "playchess.com"]
[Source "ChessBase"]
[SourceQuality "1"]
[TimeControl "40/5400+30:1800+30"]

{[%evp 9,107,-8,25,12,3,22,14,3,14,-31,36,37,41,35,83,40,37,50,58,29,7,22,36,33,48,58,65,36,71,65,58,6,31,30,34,27,35,28,29,42,72,75,59,56,72,56,91,54,61,58,49,28,72,72,73,73,73,38,87,28,141,157,154,154,157,142,429,422,422,419,1180,1162,1197,1140,583,583,1290,1295,1136,1171,5069,5365,2521,2303,1881,1752,29962,29960,29949,5737,29967,29967,29967,29969,29969,29970,29973,29975,29972,29971]} 1. Nf3 {[%emt 0:02:25]} d5 {[%emt 0:00:06][%cal Bd7d5,Bd5d4][%mdl 32]} 2. c4 {[%emt 0:00:20]} d4 {[%emt 0:00:24]} 3. b4 {[%emt 0:00:23]} c5 {[%emt 0:00:12]} 4. Bb2 {[%emt 0:00:38]} Nf6 {[%emt 0:00:50]} 5. g3 {[%emt 0:00:07]} cxb4 {[%emt 0:01:26]} 6. Bxd4 {[%emt 0:04:29]} Bg4 {[%emt 0:02:13] Strongly threatening ...Bxf3.} 7. Bb2 {[%emt 1:25:38]} Bxf3 8. exf3 {The position is equal.} e5 9. f4 e4 (9... Bc5 $15 10. Bg2 (10. fxe5 Bd4 $15) 10... O-O 11. Bxb7 (11. fxe5 Nc6 $15) 11... Bxf2+ 12. Kxf2 Qb6+ 13. d4 Qxb7) 10. Bg2 $14 Qd3 11. Qe2 Qxe2+ 12. Kxe2 Nc6 13. a3 O-O-O 14. Bxf6 gxf6 15. Bxe4 Nd4+ 16. Kd1 {axb4 is the strong threat.} bxa3 17. Ra2 (17. Nxa3 Nb3 18. Rb1 (18. Bf5+ Kb8 $15) 18... Nxd2 (18... Rxd2+ 19. Ke1 $16) 19. Bxb7+ Kb8 (19... Kc7 20. Bd5 $15) 20. Bd5+ (20. Rb5 $2 Nxc4+ 21. Ke2 Nxa3 $19) 20... Nxb1 21. Nxb1 Bb4 $16) 17... f5 18. Bd3 ({Reject} 18. Bd5 Rd6 $11) 18... Bc5 19. Nxa3 Kb8 20. Bb1 (20. Nc2 $14) 20... h5 {[%cal Bh7h5,Bh5h4][%mdl 32]} 21. Nc2 Nxc2 22. Bxc2 h4 23. Bxf5 Bxf2 24. g4 Be3 25. d3 Bxf4 26. Rf1 Bg5 27. Be4 f6 28. Rb2 {White is more active.} b6 29. c5 Kc7 30. Ke2 Rb8 31. Rf5 bxc5 32. Rxc5+ Kd6 33. Rbc2 Rhe8 (33... Rhd8 $14) 34. Kf3 (34. Rc7 $16 {Hoping for R2c6+.} Rb1 35. Rxa7) 34... Rb6 (34... Re7 $11) 35. Rd5+ $16 {[%emt 0:00:00]} Ke6 36. Rd4 {[%emt 0:00:00] aiming for Bg6.} Re7 37. Re2 {[%emt 0:00:00]} Kf7 {[%mdl 8192] [#] Prevents Bg6+. Loses the game.} (37... f5 $16 {was worth a try.}) 38. Bg6+ $1 $18 {[%emt 0:00:00][%mdl 512]} Kxg6 39. Rxe7 {[%emt 0:00:00][%mdl 4096] Endgame. KRR-KRB} a5 (39... Rb8 $142 40. Rxa7 Rg8) 40. Rdd7 {[%emt 0:00:00]} Bh6 {Inhibits Rg7+.} 41. Re8 {[%emt 0:00:00] White wants to mate with Rg8+.} f5 42. Rg8+ {[%emt 0:00:00]} Kf6 {[#]} 43. g5+ $1 {[%emt 0:00:00]} Bxg5 44. Rdg7 {[%emt 0:00:00] Intending Rg6+ and mate.} Bd2 45. Rg6+ {[%emt 0:00:00]} Kf7 46. Rxb6 {[%emt 0:00:00]} Kxg8 {KR-KB} 47. Rb5 {[%emt 0:00:00]} a4 48. Rb2 {[%emt 0:00:00]} Bc1 49. Rc2 {[%emt 0:00:00]} (49. Rb1 $142 Bd2 50. Ra1 Kf7 51. Rxa4 Bg5 52. Ra6 Bd2 53. d4 Bc3 54. Ke3) 49... Ba3 50. Rc4 {[%emt 0:00:00] White mates.} Bd6 51. Rxa4 {[%emt 0:00:00]} h3 {[#]} 52. Rf4 $1 {[%emt 0:00:00][%mdl 512]} Kg7 (52... Kf7 53. Rxf5+) 53. Rxf5 {[%emt 0:00:00]} Kg6 54. Ke4 {[%emt 0:00:00] Weighted Error Value: White=0.12 (very precise) /Black=0.48.  Loses game:     	---       	Black=1      Mistake:       	White=2     	Black=4      Inaccurate:     	White=6     	Black=4      OK:         	White=13    	Black=11     Best:        	White=2     	Black=6      Brilliant:      	White=2     	---} 1-0

[Event "Serbian League 2024"]
[Site "Bajina Basta"]
[Date "2024.10.02"]
[Round "6.32"]
[White "Grigoryan, Karen H."]
[Black "Markus, Robert"]
[Result "1/2-1/2"]
[ECO "E44"]
[WhiteElo "2569"]
[BlackElo "2586"]
[Annotator "TA"]
[PlyCount "58"]
[EventDate "2024.09.26"]
[EventType "team-tourn"]
[EventCountry "SRB"]
[SourceTitle "playchess.com"]
[Source "ChessBase"]
[SourceQuality "1"]
[TimeControl "40/5400+30:1800+30"]

{[%evp 15,58,26,47,16,54,49,60,35,43,43,37,43,26,22,25,27,35,34,29,15,22,10,29,16,24,27,22,25,29,26,23,27,36,29,50,54,55,59,51,47,55,47,106,107,129]} 1. d4 {[%emt 1:31:00]} Nf6 {[%emt 1:31:00]} 2. c4 {[%emt 0:00:30]} e6 {[%emt 0:00:30]} 3. Nc3 {[%emt 0:00:30]} Bb4 {[%emt 0:00:30]} 4. e3 {[%emt 0:00:30]} b6 {[%emt 0:00:30]} 5. Bd3 {[%emt 0:00:30]} Bb7 {[%emt 0:00:30]} 6. Nge2 {[%emt 0:00:30]} O-O 7. a3 Bxc3+ 8. Nxc3 d5 9. cxd5 exd5 10. b4 c5 11. bxc5 {White is slightly better.} bxc5 12. dxc5 Nbd7 13. O-O Nxc5 14. Bc2 Ba6 {Inhibits Nb5.} 15. Re1 Bc4 16. Rb1 Rb8 17. Bb2 {[%cal Bc1b2,Bb2d4,Bd4e5][%mdl 32]} Qa5 {[%cal Ob8b2] [#] And now ...Rxb2! would win.} 18. Ne2 Nce4 (18... Nfe4 $5) 19. Qd4 Qd2 20. Bxe4 {A strong pair of Bishops.} Qxd4 21. Bxd4 Nxe4 22. Nf4 (22. Bxa7 $2 {is the wrong capture.} Rxb1 23. Rxb1 Bxe2 $19) 22... a6 23. f3 Ng5 24. Be5 {Black is weak on the dark squares} Rb5 25. a4 Rb3 26. Rxb3 Bxb3 27. a5 Re8 28. Rb1 Rxe5 (28... Bc4 $14) 29. Rxb3 $16 {[#] White wants to mate with Rb8+.} g6 {Weighted Error Value: White=0.05 (flawless) /Black=0.10 (very precise) .  Mistake:       	---       	Black=1      Inaccurate:     	---       	Black=1      OK:         	White=10    	Black=7      Best:        	White=1     	Black=2} 1/2-1/2

[Event "Serbian League 2024"]
[Site "Bajina Basta"]
[Date "2024.10.02"]
[Round "6.33"]
[White "Perunovic, Milos"]
[Black "Stankovic, Milos"]
[Result "1/2-1/2"]
[ECO "C67"]
[WhiteElo "2525"]
[BlackElo "2466"]
[Annotator "TA"]
[PlyCount "49"]
[EventDate "2024.09.26"]
[EventType "team-tourn"]
[EventCountry "SRB"]
[SourceTitle "playchess.com"]
[Source "ChessBase"]
[SourceQuality "1"]
[TimeControl "40/5400+30:1800+30"]

{[%evp 18,49,23,17,23,13,41,22,22,17,26,20,22,23,24,16,12,14,19,22,21,22,25,18,24,22,20,11,22,10,9,13,12,19]} 1. e4 {[%emt 1:31:00]} e5 {[%emt 1:31:00]} 2. Nf3 {[%emt 0:00:30]} Nc6 {[%emt 0:00:30]} 3. Bb5 {[%emt 0:00:30]} Nf6 {[%emt 0:00:30]} 4. O-O {[%emt 0:00:30][%cal Bh1f1,Bf1e1,Be1e5][%mdl 32]} Nxe4 {[%emt 0:00:30]} 5. Re1 Nd6 6. Nxe5 Be7 7. Bf1 Nxe5 8. Rxe5 O-O 9. d4 Bf6 10. Re1 Re8 11. Bf4 Ne4 12. f3 {[%emt 0:04:00]} Nd6 {[%emt 0:04:00] [#] Threatens to win with ...Rxe1.} 13. Be5 {[%emt 0:00:30]} Bxe5 {[%emt 0:00:30]} 14. dxe5 {[%emt 0:00:30]} Nf5 {[%emt 0:00:30]} 15. Nc3 {[%emt 0:00:30]} d6 {[%emt 0:00:30]} 16. Qd2 {[%emt 0:00:30]} dxe5 {[%emt 0:00:30] [#]} 17. Rxe5 $1 {[%emt 0:00:30][%cal Oc3b5]} Be6 {[%emt 0:00:30]} 18. Qf2 {[%emt 0:00:30]} Qd4 {[%emt 0:00:30]} 19. Rae1 {[%emt 0:00:30]} Qxf2+ {[%emt 0:00:30]} (19... Red8 {keeps more tension.} 20. Bd3 Qxf2+ 21. Kxf2 Nd4) 20. Kxf2 {[%emt 0:00:30]} Nd6 {[%emt 0:00:30]} 21. h4 {[%emt 0:00:30]} Kf8 {[%emt 0:00:30] The position is equal.} 22. g4 {[%emt 0:00:30]} Bd7 {[%emt 0:00:30]} 23. Bd3 {[%emt 0:00:30]} Rxe5 {[%emt 0:00:30]} 24. Rxe5 {[%emt 0:00:30]} h6 {[%emt 0:00:30]} 25. Ne4 {[%emt 0:00:30] A rather calm draw.   Weighted Error Value: White=0.04 (flawless) /Black=0.04 (flawless) .  Inaccurate:     	---       	Black=1      OK:         	White=5     	Black=7      Best:        	---       	Black=1} 1/2-1/2

[Event "Serbian League 2024"]
[Site "Bajina Basta"]
[Date "2024.10.02"]
[Round "6.34"]
[White "Tadic, Stefan"]
[Black "Ivanisevic, Ivan"]
[Result "0-1"]
[ECO "C50"]
[WhiteElo "2440"]
[BlackElo "2519"]
[Annotator "TA"]
[PlyCount "74"]
[EventDate "2024.09.26"]
[EventType "team-tourn"]
[EventCountry "SRB"]
[SourceTitle "playchess.com"]
[Source "ChessBase"]
[SourceQuality "1"]
[TimeControl "40/5400+30:1800+30"]

{[%evp 13,74,37,44,38,60,35,48,41,50,41,62,23,30,37,22,0,25,25,26,0,0,0,0,0,0,0,0,-7,-13,-9,-9,-11,-10,-10,-23,-68,-55,-91,-58,-50,-45,-258,-252,-262,-378,-388,-372,-391,-393,-379,-382,-388,-387,-386,-291,-375,-361,-746,-718,-783,-783,-651,-616]} 1. e4 {[%emt 0:00:06]} e5 {[%emt 0:01:31]} 2. Nf3 {[%emt 0:00:07]} Nc6 {[%emt 0:00:05]} 3. Bc4 {[%emt 0:00:05]} g6 {[%emt 0:00:05]} 4. d4 {[%emt 0:00:04]} exd4 {[%emt 0:00:06]} 5. Nxd4 {[%emt 0:00:04]} Bg7 {[%emt 0:00:08]} 6. Nxc6 {[%emt 0:00:26]} bxc6 {[%emt 0:00:06]} 7. O-O {[%emt 0:01:46]} d6 {[%emt 0:00:06]} 8. Nc3 {[%emt 0:00:05]} a5 {[%emt 0:01:16]} 9. f4 {[%emt 0:05:26]} Qh4 {[%emt 0:30:57]} 10. g3 {[%emt 0:11:03] White is slightly better.} Qh5 {[%emt 0:04:25]} 11. Qxh5 {[%emt 0:07:31]} gxh5 {[%emt 0:00:11]} 12. e5 {[%emt 0:00:22]} Ne7 {[%emt 0:03:35]} 13. Re1 {[%emt 0:04:53]} Bf5 {[%emt 0:02:28]} 14. Bb3 {[%emt 0:02:50]} dxe5 {[%emt 0:11:12]} 15. fxe5 {[%emt 0:01:15]} O-O {[%emt 0:00:14]} 16. Bg5 {[%emt 0:30:23]} Ng6 {[%emt 0:00:24]} 17. Bf6 {[%emt 0:03:08]} Rfe8 {[%emt 0:00:46]} 18. Bxg7 {[%emt 0:03:06]} Kxg7 {[%emt 0:00:09]} 19. e6 $1 {[%emt 0:00:02]} fxe6 {[%emt 0:01:13][%cal Bf7e6,Be6e5,Be5e4,Be4e3][%mdl 32]} 20. Na4 {[%emt 0:01:44]} e5 {[%emt 0:06:32]} 21. Rf1 {[%emt 0:02:47]} Bh3 {[%emt 0:00:28]} 22. Rf7+ {[%emt 0:00:09]} Kh6 {[%emt 0:00:04]} 23. Nc3 {[%emt 0:08:24][%cal Oa1e1]} e4 {[%emt 0:00:43]} 24. Rxc7 {[%emt 0:00:26]} Rad8 $1 {[%emt 0:02:06] [#] Hoping for ...Ne5.} 25. Re1 {[%emt 0:02:38]} e3 {[%emt 0:02:34] Threatens to win with ...Ne5.} 26. Rxc6 {[%emt 0:02:03]} Rd2 {[%emt 0:03:25]} 27. Bd5 {[%emt 0:02:47] [#] Against Rg2+. Now White is beyond hope.} (27. Ne2 $15) 27... Rf8 $1 $19 {[%emt 0:03:26] ...Rdf2 is the strong threat.} ({Weaker is} 27... Rxc2 28. Rf6 $17) 28. Be6 {[%emt 0:01:05]} Ne5 {[%emt 0:01:52]} 29. Bxh3+ {[%emt 0:00:14]} Nxc6 {[%emt 0:00:06]} 30. Rxe3 {[%emt 0:00:02]} Nd4 {[%emt 0:00:10] Prevents Re6+.} ({Worse is} 30... Rxc2 31. Re6+ Kg7 32. Rxc6 $11) 31. Bg2 {[%emt 0:01:19]} Rxc2 {[%emt 0:02:20] ( -> ...Rc1+)} ({But not} 31... Nxc2 32. Re6+ Kg7 33. Bh1 $19) 32. Rd3 {[%emt 0:01:24]} Rc1+ {[%emt 0:05:19]} 33. Nd1 {[%emt 0:00:45]} Ne2+ {[%emt 0:00:29]} 34. Kh1 {[%emt 0:00:01]} h4 {[%emt 0:02:08]} 35. gxh4 $2 {[%emt 0:00:17]} (35. Rd5) 35... Rf2 {[%emt 0:01:41] White must now prevent ...Nf4. Black is clearly winning.} 36. Rd6+ {[%emt 0:04:06]} Kg7 {[%emt 0:01:04] aiming for ...Nf4.} 37. Rd7+ {[%emt 0:00:26]} Kf8 {[%emt 0:00:57] Weighted Error Value: White=0.37/Black=0.04 (flawless) .  Loses game:     	White=1     	---        Mistake:       	White=1     	---        Inaccurate:     	White=4     	Black=1      OK:         	White=9     	Black=14     Best:        	White=2     	Black=3      Strong:       	White=1     	Black=2} 0-1

[Event "Serbian League 2024"]
[Site "Bajina Basta"]
[Date "2024.10.02"]
[Round "6.36"]
[White "Tadic, Branko"]
[Black "Miljkovic, Miroslav D"]
[Result "1/2-1/2"]
[ECO "A13"]
[WhiteElo "2424"]
[BlackElo "2420"]
[Annotator "TA"]
[PlyCount "27"]
[EventDate "2024.09.26"]
[EventType "team-tourn"]
[EventCountry "SRB"]
[SourceTitle "playchess.com"]
[Source "ChessBase"]
[SourceQuality "1"]
[TimeControl "40/5400+30:1800+30"]

{[%evp 9,27,31,22,12,9,1,21,10,7,13,6,0,6,0,12,10,16,8,11,14]} 1. Nf3 {[%emt 0:05:15]} Nf6 {[%emt 0:00:27]} 2. c4 {[%emt 0:00:32]} e6 {[%emt 0:00:52]} 3. g3 {[%emt 0:00:12]} a6 {[%emt 0:00:41]} 4. Bg2 {[%emt 0:01:10]} b5 {[%emt 0:00:33]} 5. b3 {[%emt 0:00:19]} Bb7 {[%emt 0:00:15]} 6. Bb2 {[%emt 1:26:02] The position is equal.} c5 7. Nc3 Qb6 8. O-O Be7 9. e3 O-O 10. Qe2 bxc4 {[#]} 11. bxc4 $1 d6 ({Much worse is} 11... Qxb2 12. Rfb1 Qa3 (12... Bxf3 $2 13. Bxf3 Qa3 14. Bxa8 $18) 13. Rb3 $14 (13. Rxb7 Nc6 $16)) (11... Nc6 12. Rab1) 12. Rab1 {[%cal Oc3d5] Threatening Nd5!} Qc7 13. Ba1 Nbd7 14. Rb3 {[%emt 0:00:00] Not much happened in this game.   Weighted Error Value: White=0.03 (flawless) /Black=0.04 (flawless) .  OK:         	White=4     	Black=4} 1/2-1/2

[Event "Serbian League 2024"]
[Site "Bajina Basta"]
[Date "2024.10.03"]
[Round "7.7"]
[White "Benkovic, Petar"]
[Black "Nadj Hedjesi, Balind"]
[Result "1/2-1/2"]
[ECO "C01"]
[WhiteElo "2362"]
[BlackElo "2212"]
[Annotator "RC"]
[PlyCount "20"]
[EventDate "2024.09.26"]
[EventType "team-tourn"]
[EventCountry "SRB"]
[SourceTitle "playchess.com"]
[Source "ChessBase"]
[SourceQuality "1"]
[TimeControl "40/5400+30:1800+30"]

1. Nf3 {[%emt 0:00:06]} e6 {[%emt 0:00:15]} 2. d4 {[%emt 0:00:56]} h6 {[%emt 0:00:48]} 3. e4 {[%emt 0:02:56]} d5 {[%emt 0:00:38]} 4. exd5 {[%emt 0:00:52]} exd5 {[%emt 0:01:05]} 5. c4 {[%emt 0:00:09]} Nf6 {[%emt 0:01:23]} 6. Nc3 {[%emt 0:04:33]} Bb4 {[%emt 0:02:21]} 7. Bd3 {[%emt 0:05:14]} O-O {[%emt 0:06:47]} 8. O-O {[%emt 0:00:20]} Nc6 {[%emt 0:01:21]} 9. a3 {[%emt 0:09:03]} dxc4 {[%emt 0:06:31]} 10. Bxc4 {[%emt 0:00:20]} Bd6 {[%emt 0:00:07]} 1/2-1/2

[Event "Serbian League 2024"]
[Site "Bajina Basta"]
[Date "2024.10.03"]
[Round "7.32"]
[White "Djukic, Nikola"]
[Black "Grigoryan, Karen H."]
[Result "1/2-1/2"]
[ECO "C67"]
[WhiteElo "2515"]
[BlackElo "2569"]
[Annotator "RC"]
[PlyCount "32"]
[EventDate "2024.09.26"]
[EventType "team-tourn"]
[EventCountry "SRB"]
[SourceTitle "playchess.com"]
[Source "ChessBase"]
[SourceQuality "1"]
[TimeControl "40/5400+30:1800+30"]

1. e4 e5 {[%emt 1:31:00]} 2. Nf3 {[%emt 1:31:30]} Nc6 {[%emt 0:00:30]} 3. Bb5 {[%emt 0:00:30]} Nf6 {[%emt 0:00:30]} 4. O-O {[%emt 0:00:30]} Nxe4 {[%emt 0:00:30]} 5. Re1 {[%emt 0:00:30]} Nd6 {[%emt 0:00:30]} 6. Nxe5 {[%emt 0:00:30]} Be7 {[%emt 0:00:30]} 7. Bf1 {[%emt 0:00:30]} Nxe5 {[%emt 0:00:30]} 8. Rxe5 {[%emt 0:00:30]} O-O {[%emt 0:00:30]} 9. Nc3 {[%emt 0:00:30]} Ne8 {[%emt 0:00:30]} 10. Nd5 {[%emt 0:00:30]} Bd6 {[%emt 0:00:30]} 11. Re1 {[%emt 0:00:30]} c6 {[%emt 0:00:30]} 12. Ne3 {[%emt 0:00:30]} Bc7 {[%emt 0:00:30]} 13. Nf5 {[%emt 0:00:30]} d5 {[%emt 0:00:30]} 14. Ne7+ {[%emt 0:00:30]} Kh8 {[%emt 0:00:30]} 15. Nxc8 {[%emt 0:00:30]} Rxc8 {[%emt 0:00:30]} 16. d3 f5 1/2-1/2